bitfinex-derivatives/quotes_SOLF0:USTF0_20241226
["timestamp","ask_amount","ask_price","bid_price","bid_amount"]
[1735188819302,2.5652,195.09,194.99,2.5664]
[1735188819605,7.26473235,195.11,195.02,7.26473235]
[1735188819997,9.82953235,195.11,195.06,2.5653]
[1735188820897,7.26473235,195.11,194.98,4.7852]
[1735188821102,2.5651,195.09,195.03,7.26473235]
[1735188822203,2.5651,195.09,195.04,2.5656]
[1735188823306,7.26473235,195.09,194.94,3.2]
[1735188823507,2.5655,195.06,195.01,9.83073235]
[1735188823706,2.5655,195.06,195.01,7.26473235]
[1735188824507,2.5655,195.06,195.02,2.5659]
[1735188825098,7.26473235,195.11,195.03,7.26473235]
[1735188826404,2.5653,195.08,195.04,2.5657]
[1735188826603,2.5653,195.08,195.03,7.26473235]
[1735188827006,2.5653,195.08,195.01,7.26473235]
[1735188827207,2.5653,195.07,195.03,2.5658]
[1735188827408,7.26473235,195.11,195.01,7.26473235]
[1735188827907,7.26473235,195.11,195.02,2.5659]
[1735188828206,2.5654,195.07,195.02,2.5659]
[1735188828606,7.26473235,195.11,195.02,2.5659]
[1735188828907,7.26473235,195.09,195.01,7.26473235]
[1735188829403,2.5656,195.06,195.01,9.83073235]
[1735188830099,2.5656,195.06,195.01,7.26473235]
[1735188830298,2.5656,195.06,195.02,2.5659]
[1735188830499,28.22617034,195.12,195.02,2.5659]
[1735188830698,14.32127493,195.12,195.04,2.5656]
[1735188831008,7.26473235,195.1,195.01,7.26473235]
[1735188831308,2.5653,195.07,195.01,7.26473235]
[1735188832204,2.5653,195.07,195.02,2.5659]
[1735188832402,7.26473235,195.1,195.01,7.26473235]
[1735188832603,7.26473235,195.08,194.99,7.26473235]
[1735188832805,7.26473235,195.06,194.94,4.7836]
[1735188833010,7.26473235,195.02,194.93,28.33858101]
[1735188833207,3.2,195.01,194.93,38.17041336]
[1735188833410,3.2,195.01,194.93,35.60331336]
[1735188833709,3.2,195.01,194.93,7.26473235]
[1735188834113,3.2,195.01,194.91,2.5673]
[1735188834304,3.2,195.01,194.93,7.26473235]
[1735188834704,2.5666,194.97,194.93,7.26473235]
[1735188836915,2.5664,194.99,194.93,7.26473235]
[1735188837117,3.2,195.01,194.93,7.26473235]
[1735188838413,2.5664,194.99,194.94,2.567]
[1735188841318,2.5664,194.99,194.94,9.83173235]
[1735188842121,3.2,195.01,194.94,7.26473235]
[1735188843523,5.7661,195.01,194.96,2.5666]
[1735188844021,3.2,195.01,194.96,2.5666]
[1735188844321,2.5662,195.0,194.95,2.5669]
[1735188844917,7.26473235,195.02,194.94,7.26473235]
[1735188845112,7.26473235,195.04,194.96,7.26473235]
[1735188845317,3.2,195.05,194.98,7.26473235]
[1735188845822,5.7657,195.05,194.99,2.5663]
[1735188846021,3.2,195.05,194.99,2.5663]
[1735188847419,2.5657,195.04,194.99,2.5663]
[1735188847618,2.5657,195.04,195.0,7.26473235]
[1735188848225,1.6405,195.09,195.0,7.26473235]
[1735188848416,2.5653,195.07,195.02,2.5659]
[1735188848622,2.5653,195.07,195.0,7.26473235]
[1735188848623,10.46473235,195.08,195.0,7.26473235]
[1735188848824,7.26473235,195.08,195.0,7.26473235]
[1735188849020,10.46473235,195.08,195.0,7.26473235]
[1735188849522,2.5654,195.06,195.01,2.5661]
[1735188851222,2.5654,195.06,195.0,7.26473235]
[1735188851423,2.5654,195.06,195.02,2.566]
[1735188851625,13.03003235,195.08,195.0,7.26473235]
[1735188851824,5.7653,195.08,195.02,7.26473235]
[1735188852023,7.26473235,195.1,195.02,7.26473235]
[1735188853528,2.5651,195.09,195.04,2.5657]
[1735188855133,2.5652,195.08,195.02,7.26473235]
[1735188855334,2.5652,195.08,195.03,2.5658]
[1735188858133,7.26473235,195.1,195.03,2.5658]
[1735188858333,2.5653,195.07,195.03,2.5658]
[1735188859028,2.5658,195.04,194.99,2.5663]
[1735188859234,2.5658,195.04,195.0,7.26473235]
[1735188862935,2.5658,195.04,194.99,2.5663]
[1735188863129,2.5658,195.04,195.0,7.26473235]
[1735188864934,2.5658,195.04,195.0,9.83093235]
[1735188865429,6.5093,195.11,195.0,7.26473235]
[1735188865627,7.26473235,195.1,195.02,7.26473235]
[1735188866329,7.26473235,195.08,195.02,2.5658]
[1735188867537,2.5655,195.06,195.02,2.5658]
[1735188868133,2.5653,195.07,195.02,2.5658]
[1735188868637,2.5653,195.07,195.03,2.5658]
[1735188869336,7.26473235,195.1,195.03,2.5658]
[1735188869540,2.5652,195.08,195.03,2.5658]
[1735188870841,1.6461,195.14,195.05,7.26473235]
[1735188871144,7.05654258,195.15,195.09,7.26473235]
[1735188871341,9.62094258,195.15,195.1,2.5649]
[1735188871640,7.05654258,195.15,195.07,7.26473235]
[1735188871841,2.5647,195.13,195.07,9.82993235]
[1735188872645,2.5647,195.13,195.08,2.5651]
[1735188874845,7.26473235,195.14,195.03,3.2]
[1735188875045,7.26473235,195.12,195.04,7.26473235]
[1735188876448,1.5646,195.17,195.06,7.26473235]
[1735188876748,7.26473235,195.13,195.06,7.26473235]
[1735188876947,2.5645,195.13,195.08,9.82993235]
[1735188877444,3.18,195.14,195.08,7.26473235]
[1735188878444,5.7444,195.14,195.09,2.565]
[1735188886860,7.26473235,195.21,195.12,7.26473235]
[1735188887059,7.26473235,195.21,195.14,7.26473235]
[1735188887260,7.05654258,195.22,195.16,7.26473235]
[1735188887556,7.05654258,195.22,195.18,7.26473235]
[1735188887760,7.05654258,195.22,195.2,7.26473235]
[1735188888656,9.61914258,195.28,195.23,2.5632]
[1735188889553,7.05654258,195.28,195.24,7.26473235]
[1735188890054,7.26473235,195.3,195.24,7.26473235]
[1735188891458,2.5626,195.28,195.24,7.26473235]
[1735188893659,2.5624,195.29,195.24,7.26473235]
[1735188894561,7.26473235,195.3,195.24,7.26473235]
[1735188894762,2.5626,195.28,195.24,7.26473235]
[1735188897858,2.5626,195.28,195.16,4.8502]
[1735188897859,2.5623,195.3,195.26,7.26473235]
[1735188900859,3.18,195.34,195.25,7.26473235]
[1735188901065,7.26473235,195.33,195.27,7.26473235]
[1735188902259,7.26473235,195.33,195.21,3.18]
[1735188902464,7.26473235,195.31,195.23,7.26473235]
[1735188903065,2.5628,195.27,195.23,7.26473235]
[1735188903770,7.26473235,195.31,195.23,7.26473235]
[1735188903968,2.5628,195.26,195.23,7.26473235]
[1735188909470,2.5627,195.27,195.25,7.26473235]
[1735188920079,7.26473235,195.29,195.22,7.26473235]
[1735188920471,2.5627,195.27,195.22,7.26473235]
[1735188920673,7.26473235,195.29,195.22,7.26473235]
[1735188921978,2.5632,195.23,195.22,7.26473235]
[1735188922179,28.22617034,195.31,195.13,3.18]
[1735188922180,7.26473235,195.25,195.13,3.18]
[1735188922369,7.26473235,195.25,195.17,7.26473235]
[1735188923177,7.26473235,195.23,195.1,1.6421]
[1735188923481,7.26473235,195.23,195.16,7.26473235]
[1735188924683,2.5639,195.18,195.16,7.26473235]
[1735188925781,7.26473235,195.23,195.16,7.26473235]
[1735188925983,7.26473235,195.25,195.16,7.26473235]
[1735188926876,2.5637,195.2,195.16,7.26473235]
[1735188927482,7.26473235,195.25,195.16,7.26473235]
[1735188927483,2.5637,195.19,195.16,7.26473235]
[1735188930774,7.26473235,195.23,195.1,4.8221]
[1735188931081,2.5641,195.16,195.14,7.26473235]
[1735188932280,2.5641,195.16,195.11,2.5647]
[1735188932483,2.5643,195.15,195.12,7.26473235]
[1735188933386,7.26473235,195.19,195.04,1.6506]
[1735188933587,7.26473235,195.19,195.11,7.26473235]
[1735188933881,2.564,195.17,195.11,7.26473235]
[1735188934186,7.26473235,195.19,195.11,7.26473235]
[1735188935582,2.5644,195.15,195.11,7.26473235]
[1735188939186,2.5641,195.16,195.13,7.26473235]
[1735188939589,7.26473235,195.19,195.13,7.26473235]
[1735188939993,2.5644,195.15,195.13,7.26473235]
[1735188940485,2.5644,195.15,195.11,7.26473235]
[1735188941187,2.5648,195.11,195.06,2.5653]
[1735188941390,7.26473235,195.15,195.07,7.26473235]
[1735188941592,10.44473235,195.15,195.07,7.26473235]
[1735188942091,2.5646,195.13,195.07,7.26473235]
[1735188942391,10.44473235,195.15,195.07,7.26473235]
[1735188942792,2.5648,195.12,195.07,7.26473235]
[1735188942992,2.5648,195.12,195.09,7.26473235]
[1735188943193,3.18,195.15,195.09,7.26473235]
[1735188944388,2.5646,195.13,195.09,7.26473235]
[1735188947088,2.5644,195.14,195.09,9.82963235]
[1735188947298,3.18,195.19,195.13,7.26473235]
[1735188947589,2.5641,195.17,195.13,7.26473235]
[1735188947793,1.6275,195.2,195.15,7.26473235]
[1735188948394,2.564,195.18,195.15,7.26473235]
[1735188949496,2.564,195.17,195.15,7.26473235]
[1735188949795,1.6275,195.2,195.13,7.26473235]
[1735188950493,2.5639,195.18,195.13,7.26473235]
[1735188950694,1.6275,195.2,195.13,7.26473235]
[1735188951398,2.5644,195.15,195.13,7.26473235]
[1735188964116,2.5644,195.15,195.11,2.5648]
[1735188964318,2.5644,195.15,195.12,7.26473235]
[1735188965015,2.564,195.17,195.12,7.26473235]
[1735188965216,7.26473235,195.19,195.12,7.26473235]
[1735188966318,2.5642,195.16,195.12,7.26473235]
[1735188966820,7.26473235,195.19,195.12,7.26473235]
[1735188968710,2.564,195.17,195.12,7.26473235]
[1735188968911,1.6275,195.2,195.12,7.26473235]
[1735188970522,2.5639,195.18,195.14,2.5644]
[1735188970820,2.5639,195.18,195.12,7.26473235]
[1735188971524,2.5639,195.18,195.14,7.26473235]
[1735188981318,2.5641,195.17,195.14,7.26473235]
[1735188981525,7.26473235,195.19,195.05,7.11983137]
[1735188981718,7.26473235,195.17,195.09,7.26473235]
[1735188983428,2.5646,195.13,195.09,7.26473235]
[1735188985123,7.26473235,195.17,195.04,4.8306]
[1735188985423,7.26473235,195.15,195.08,7.26473235]
[1735188986519,3.18,195.16,195.08,9.82983235]
[1735188986821,19.19200777,195.2,195.14,7.26473235]
[1735188987029,28.47910168,195.18,195.14,7.26473235]
[1735188987621,28.47910168,195.18,195.16,7.26473235]
[1735188988325,4.1689,195.22,195.16,9.82873235]
[1735188989531,2.5632,195.23,195.18,7.26473235]
[1735188990431,8.78097542,195.28,195.2,7.26473235]
[1735188990728,16.04570777,195.28,195.2,7.26473235]
[1735188991223,2.5628,195.26,195.2,7.26473235]
[1735188991625,8.92593235,195.28,195.2,7.26473235]
[1735188992630,2.5628,195.27,195.21,2.5635]
[1735188993024,8.92593235,195.28,195.2,7.26473235]
[1735188993224,8.92593235,195.28,195.2,9.82833235]
[1735188993225,2.5628,195.26,195.2,9.82833235]
[1735188994129,7.26473235,195.26,195.15,3.18]
[1735188994333,7.26473235,195.26,195.18,7.26473235]
[1735188995431,2.5632,195.23,195.18,7.26473235]
[1735188997830,8.92593235,195.28,195.2,7.26473235]
[1735188998926,2.5629,195.26,195.21,2.5635]
[1735189001827,8.92593235,195.28,195.21,2.5635]
[1735189002034,2.5627,195.27,195.22,2.5633]
[1735189003029,1.56,195.32,195.24,7.26473235]
[1735189003223,8.82473235,195.32,195.24,7.26473235]
[1735189003424,2.5622,195.31,195.24,7.26473235]
[1735189003629,2.5622,195.31,195.26,2.5628]
[1735189005936,9.82673235,195.32,195.27,2.5627]
[1735189007636,2.5619,195.33,195.27,2.5627]
[1735189008638,7.26473235,195.34,195.27,2.5627]
[1735189008837,2.562,195.32,195.27,2.5627]
[1735189009534,2.5622,195.31,195.27,2.5627]
[1735189012235,7.26473235,195.32,194.88,2.08564205]
[1735189012441,7.26473235,195.3,195.22,7.26473235]
[1735189012737,7.26473235,195.28,195.22,7.26473235]
[1735189012933,2.5632,195.23,195.22,7.26473235]
[1735189014438,2.5633,195.23,195.2,7.26473235]
[1735189016543,2.5636,195.2,195.11,2.5647]
[1735189016842,2.5636,195.2,195.16,7.26473235]
[1735189017742,2.5635,195.21,195.18,7.26473235]
[1735189018443,2.5634,195.22,195.18,7.26473235]
[1735189019242,2.5635,195.21,195.18,7.26473235]
[1735189020939,3.18,195.25,195.11,3.18]
[1735189021141,3.18,195.25,195.17,7.26473235]
[1735189021441,3.18,195.25,195.19,7.26473235]
[1735189021644,3.18,195.25,195.11,3.18]
[1735189021645,10.44473235,195.29,195.21,7.26473235]
[1735189021943,7.11977542,195.33,195.21,7.26473235]
[1735189022138,7.26473235,195.3,195.23,7.26473235]
[1735189023042,2.5628,195.27,195.23,7.26473235]
[1735189025839,4.7608,195.34,195.23,7.26473235]
[1735189026044,7.26473235,195.32,195.25,7.26473235]
[1735189026540,9.82683235,195.32,195.25,9.82753235]
[1735189027144,2.5622,195.31,195.25,9.82753235]
[1735189028652,2.5622,195.31,195.26,2.5628]
[1735189029449,2.562,195.32,195.26,2.5628]
[1735189030446,2.5622,195.31,195.26,2.5628]
[1735189033638,7.26473235,195.32,195.23,3.16]
[1735189033941,2.5625,195.29,195.24,9.82783235]
[1735189034741,2.5625,195.29,195.25,2.5629]
[1735189035544,7.26473235,195.32,195.24,7.26473235]
[1735189035849,7.26473235,195.32,195.19,3.1696]
[1735189036046,2.5632,195.23,195.19,2.5637]
[1735189036246,2.5632,195.23,195.2,7.26473235]
[1735189036438,7.26473235,195.26,195.12,3.1044]
[1735189036639,2.5634,195.22,195.18,7.26473235]
[1735189037044,7.26473235,195.26,195.18,7.26473235]
[1735189038447,7.26473235,195.22,195.12,7.7778]
[1735189038648,7.26473235,195.22,195.14,7.26473235]
[1735189039754,2.5638,195.19,195.14,7.26473235]
[1735189040560,2.5636,195.2,195.16,7.26473235]
[1735189042656,2.5636,195.2,195.16,9.82883235]
[1735189045557,10.37903235,195.24,195.18,7.26473235]
[1735189045558,2.5634,195.22,195.18,7.26473235]
[1735189045862,3.1143,195.24,195.18,7.26473235]
[1735189046761,5.6775,195.24,195.2,2.5636]
[1735189048061,3.1143,195.24,195.2,2.5636]
[1735189048362,3.16,195.25,195.18,7.26473235]
[1735189048561,3.16,195.3,195.22,7.26473235]
[1735189048858,7.26473235,195.29,195.22,7.26473235]
[1735189049065,7.26473235,195.27,195.21,2.5635]
[1735189049258,2.563,195.25,195.19,7.26473235]
[1735189050366,2.563,195.25,195.2,2.5635]
[1735189050963,2.5631,195.24,195.19,9.82833235]
[1735189055667,2.5632,195.23,195.19,7.26473235]
[1735189057472,2.5632,195.23,195.18,2.5638]
[1735189058076,7.26473235,195.23,195.17,7.26473235]
[1735189059273,7.26473235,195.21,195.01,146.82490507]
[1735189059475,7.26473235,195.21,195.13,7.26473235]
[1735189059672,4.6758,195.23,195.13,7.26473235]
[1735189059871,2.564,195.18,195.13,9.82913235]
[1735189060465,2.564,195.18,195.13,2.5644]
[1735189060666,2.564,195.17,195.12,9.82933235]
[1735189062877,7.26473235,195.19,195.12,9.82933235]
[1735189063071,2.5642,195.16,195.12,7.26473235]
[1735189063780,7.26473235,195.19,195.12,7.26473235]
[1735189063976,2.5643,195.15,195.12,7.26473235]
[1735189066379,7.26473235,195.17,195.06,4.6849]
[1735189066678,7.26473235,195.15,195.08,7.26473235]
[1735189067476,2.5648,195.12,195.08,7.26473235]
[1735189067977,7.26473235,195.15,195.08,7.26473235]
[1735189068177,7.26473235,195.13,195.01,3.16]
[1735189068377,7.26473235,195.13,195.05,7.26473235]
[1735189068579,2.5651,195.09,195.05,7.26473235]
[1735189069383,7.26473235,195.13,195.05,7.26473235]
[1735189069384,2.5652,195.08,195.05,7.26473235]
[1735189069572,7.26473235,195.13,195.05,7.26473235]
[1735189071984,2.565,195.1,195.05,7.26473235]
[1735189072181,2.565,195.1,195.05,9.83023235]
[1735189072386,7.26473235,195.18,195.09,7.26473235]
[1735189072575,2.5644,195.15,195.06,3.16]
[1735189072882,2.5644,195.15,195.1,7.26473235]
[1735189078279,2.5644,195.15,195.1,9.82963235]
[1735189078479,2.5642,195.16,195.12,7.26473235]
[1735189078982,7.26473235,195.18,195.12,9.82933235]
[1735189079180,7.26473235,195.2,195.12,7.26473235]
[1735189079587,2.564,195.18,195.13,2.5645]
[1735189079783,7.26473235,195.2,195.13,2.5645]
[1735189080483,7.26473235,195.2,195.12,7.26473235]
[1735189080684,2.564,195.17,195.12,9.82933235]
[1735189080977,7.26473235,195.2,195.12,7.26473235]
[1735189082288,7.26473235,195.18,195.1,7.26473235]
[1735189082885,7.26473235,195.18,195.12,7.26473235]
[1735189083188,2.564,195.17,195.12,9.82933235]
[1735189083380,2.564,195.17,195.12,7.26473235]
[1735189083683,7.26473235,195.2,195.12,7.26473235]
[1735189083884,2.5639,195.18,195.13,2.5644]
[1735189084886,2.5639,195.18,195.14,2.5644]
[1735189085084,2.5639,195.18,195.12,7.26473235]
[1735189085784,7.26473235,195.2,195.07,4.646]
[1735189086084,2.5642,195.16,195.11,9.82943235]
[1735189086484,2.5644,195.15,195.11,9.82943235]
[1735189087585,2.5642,195.16,195.12,2.5646]
[1735189087885,7.26473235,195.2,195.13,7.26473235]
[1735189088185,7.26473235,195.22,195.13,7.26473235]
[1735189088885,2.5638,195.19,195.15,2.5642]
[1735189096098,2.5638,195.19,195.14,2.5644]
[1735189096297,7.26473235,195.2,195.13,7.26473235]
[1735189096499,7.26473235,195.2,195.11,7.26473235]
[1735189096795,7.26473235,195.2,195.12,2.5646]
[1735189096993,2.5641,195.17,195.12,2.5646]
[1735189097592,7.26473235,195.2,195.12,2.5646]
[1735189098499,2.5641,195.17,195.12,2.5646]
[1735189099495,7.26473235,195.2,195.13,7.26473235]
[1735189099702,2.5637,195.2,195.15,7.26473235]
[1735189100194,2.5637,195.2,195.16,2.564]
[1735189100901,2.5639,195.18,195.13,9.82913235]
[1735189101102,7.26473235,195.22,195.13,9.82913235]
[1735189101397,7.26473235,195.2,195.13,9.82913235]
[1735189101599,2.5639,195.18,195.13,9.82913235]
[1735189102401,2.564,195.17,195.13,9.82913235]
[1735189103302,2.5639,195.18,195.15,2.5642]
[1735189103500,4.6758,195.23,195.13,7.26473235]
[1735189103698,4.6758,195.23,195.15,7.26473235]
[1735189104003,1.5264,195.23,195.18,2.5638]
[1735189104199,1.5264,195.23,195.15,7.26473235]
[1735189104695,2.5636,195.21,195.15,7.26473235]
[1735189105202,2.5636,195.21,195.17,2.5639]
[1735189108405,2.5636,195.21,195.15,7.26473235]
[1735189108600,2.5636,195.21,195.18,2.5639]
[1735189111604,31.68140168,195.28,195.18,7.26473235]
[1735189111812,38.94613403,195.28,195.2,7.26473235]
[1735189112206,2.5629,195.26,195.22,2.5632]
[1735189112402,10.46703235,195.28,195.2,7.26473235]
[1735189113614,2.5627,195.27,195.23,2.5631]
[1735189113813,10.46703235,195.28,195.2,7.26473235]
[1735189114104,2.5631,195.24,195.21,2.5635]
[1735189114310,2.5631,195.24,195.2,7.26473235]
[1735189115314,2.5631,195.24,195.2,9.82823235]
[1735189116512,2.5631,195.24,195.2,7.26473235]
[1735189116811,2.5631,195.24,195.21,2.5634]
[1735189118919,7.26473235,195.26,195.21,2.5634]
[1735189119129,2.563,195.25,195.21,2.5634]
[1735189123022,10.46703235,195.28,195.2,7.26473235]
[1735189123223,2.5628,195.26,195.22,2.5633]
[1735189135434,1.5518,195.31,195.22,7.26473235]
[1735189135634,8.81653235,195.31,195.24,7.26473235]
[1735189136744,2.5624,195.3,195.25,2.5629]
[1735189137640,7.26473235,195.29,195.22,2.5632]
[1735189138347,2.5627,195.27,195.22,2.5632]
[1735189144249,1.5518,195.31,195.21,7.26473235]
[1735189144453,2.5624,195.29,195.23,7.26473235]
[1735189144650,8.81653235,195.31,195.23,7.26473235]
[1735189145145,2.5623,195.3,195.26,2.5627]
[1735189145355,7.26473235,195.32,195.25,7.26473235]
[1735189145850,2.5623,195.31,195.27,2.5626]
[1735189146749,2.5623,195.3,195.27,2.5626]
[1735189146943,2.5623,195.3,195.26,2.5628]
[1735189147251,7.26473235,195.32,195.26,2.5628]
[1735189148154,3.126,195.34,195.27,7.26473235]
[1735189148353,2.5621,195.32,195.28,2.5625]
[1735189148748,10.39073235,195.34,195.28,2.5625]
[1735189149154,2.5621,195.32,195.28,2.5625]
[1735189150355,2.5622,195.31,195.27,2.5627]
[1735189158457,2.5622,195.31,195.28,2.5625]
[1735189158659,2.5622,195.31,195.28,9.82723235]
[1735189158857,2.562,195.33,195.28,7.26473235]
[1735189160462,2.562,195.33,195.29,2.5624]
[1735189162462,2.562,195.32,195.29,2.5624]
[1735189167064,2.562,195.32,195.28,9.82723235]
[1735189180465,2.5623,195.3,195.28,7.26473235]
[1735189180666,7.26473235,195.36,195.28,7.26473235]
[1735189181468,2.5621,195.32,195.28,7.26473235]
[1735189181671,7.26473235,195.34,195.27,7.26473235]
[1735189181973,2.5634,195.22,195.19,28.47932549]
[1735189182172,10.42473235,195.28,195.2,7.26473235]
[1735189182363,3.16,195.28,195.2,7.26473235]
[1735189182571,2.5634,195.22,195.2,7.26473235]
[1735189189879,7.11977542,195.3,195.2,7.26473235]
[1735189190080,7.11977542,195.3,195.24,7.26473235]
[1735189190380,7.26473235,195.27,195.2,7.26473235]
[1735189191477,7.26473235,195.27,195.15,4.8286]
[1735189191678,7.26473235,195.27,195.19,7.26473235]
[1735189192079,2.5636,195.21,195.19,7.26473235]
[1735189193875,2.5634,195.22,195.19,7.26473235]
[1735189199080,2.5632,195.23,195.19,9.82843235]
[1735189200085,3.16,195.26,195.19,7.26473235]
[1735189200290,2.5631,195.24,195.2,2.5636]
[1735189200587,2.5631,195.24,195.15,4.8286]
[1735189200786,2.5631,195.24,195.2,7.26473235]
[1735189201691,3.16,195.26,195.2,7.26473235]
[1735189201982,4.6369,195.32,195.24,7.26473235]
[1735189202187,11.90163235,195.32,195.24,9.82783235]
[1735189203286,2.5625,195.29,195.24,9.82783235]
[1735189204196,2.5625,195.29,195.25,2.5629]
[1735189205093,2.5621,195.32,195.28,7.26473235]
[1735189205393,7.26473235,195.33,195.26,7.26473235]
[1735189205593,2.5622,195.31,195.26,7.26473235]
[1735189205788,7.26473235,195.33,195.26,7.26473235]
[1735189206591,2.5625,195.29,195.26,7.26473235]
[1735189208596,7.26473235,195.33,195.26,7.26473235]
[1735189208789,2.5623,195.3,195.26,9.82753235]
[1735189208988,7.26473235,195.33,195.27,7.26473235]
[1735189209695,2.5622,195.31,195.27,7.26473235]
[1735189210089,7.26473235,195.35,195.27,7.26473235]
[1735189210290,2.5619,195.33,195.29,2.5624]
[1735189211303,2.5621,195.32,195.27,9.82743235]
[1735189212597,2.5621,195.32,195.27,2.5627]
[1735189212795,2.5621,195.32,195.28,7.26473235]
[1735189217001,2.5622,195.31,195.28,7.26473235]
[1735189218700,7.26473235,195.35,195.28,7.26473235]
[1735189218907,7.26473235,195.31,195.21,3.14]
[1735189219107,7.26473235,195.31,195.24,7.26473235]
[1735189220105,2.5628,195.27,195.24,7.26473235]
[1735189221103,2.5625,195.29,195.24,7.26473235]
[1735189221302,7.26473235,195.33,195.26,7.26473235]
[1735189221500,10.40473235,195.34,195.28,7.26473235]
[1735189221705,7.11977542,195.36,195.3,7.26473235]
[1735189221908,7.11977542,195.36,195.32,7.26473235]
[1735189222406,23.92072626,195.37,195.32,7.26473235]
[1735189222605,2.5614,195.37,195.32,7.26473235]
[1735189223007,2.5613,195.38,195.33,2.5619]
[1735189224007,2.5618,195.35,195.31,7.26473235]
[1735189224213,7.26473235,195.35,195.29,7.26473235]
[1735189224602,2.5619,195.34,195.29,7.26473235]
[1735189224806,7.26473235,195.35,195.29,7.26473235]
[1735189226002,4.6515,195.39,195.29,7.26473235]
[1735189226312,7.26473235,195.37,195.29,7.26473235]
[1735189227412,2.5619,195.33,195.29,7.26473235]
[1735189228109,7.26473235,195.35,195.29,7.26473235]
[1735189228411,2.562,195.32,195.29,7.26473235]
[1735189236717,2.5618,195.34,195.31,7.26473235]
[1735189237623,2.5618,195.34,195.33,7.26473235]
[1735189238620,2.5618,195.34,195.3,2.5622]
[1735189238822,2.5616,195.35,195.32,7.26473235]
[1735189241016,2.5615,195.37,195.34,7.26473235]
[1735189241322,11.91623235,195.39,195.34,7.26473235]
[1735189242123,8.80703235,195.39,195.32,2.5619]
[1735189242323,8.80703235,195.39,195.34,7.26473235]
[1735189242621,2.5615,195.37,195.34,7.26473235]
[1735189243017,2.5612,195.38,195.34,7.26473235]
[1735189244721,7.26473235,195.42,195.36,7.26473235]
[1735189246430,2.5613,195.38,195.36,7.26473235]
[1735189247623,7.26473235,195.38,195.25,1.5215]
[1735189247822,7.26473235,195.35,195.29,7.26473235]
[1735189249632,4.6708,195.37,195.31,7.26473235]
[1735189250530,3.14,195.37,195.31,9.82683235]
[1735189250734,3.14,195.37,195.31,7.26473235]
[1735189251337,7.26473235,195.36,195.29,7.26473235]
[1735189251524,7.26473235,195.34,195.24,1.5206]
[1735189251724,7.26473235,195.34,195.27,7.26473235]
[1735189252434,2.5622,195.31,195.27,7.26473235]
[1735189253129,2.562,195.33,195.29,7.26473235]
[1735189254232,7.26473235,195.36,195.31,7.26473235]
[1735189254233,2.5616,195.36,195.31,7.26473235]
[1735189254431,8.87723235,195.37,195.31,7.26473235]
[1735189255533,1.6125,195.37,195.31,7.26473235]
[1735189255726,2.5617,195.35,195.31,7.26473235]
[1735189256438,2.5618,195.34,195.31,7.26473235]
[1735189261038,2.5616,195.36,195.33,7.26473235]
[1735189262933,3.14,195.4,195.33,7.26473235]
[1735189262934,2.5614,195.37,195.33,7.26473235]
[1735189263829,4.6712,195.41,195.35,7.26473235]
[1735189264032,1.5312,195.41,195.35,7.26473235]
[1735189265443,2.5613,195.38,195.35,7.26473235]
[1735189265633,1.5312,195.41,195.35,7.26473235]
[1735189265839,7.26473235,195.4,195.34,7.26473235]
[1735189267142,2.5611,195.39,195.34,9.82643235]
[1735189267343,2.5611,195.39,195.36,7.26473235]
[1735189269743,2.5612,195.39,195.35,7.26473235]
[1735189270044,13.60233235,195.42,195.35,7.26473235]
[1735189272143,2.561,195.4,195.35,9.82633235]
[1735189274043,7.11977542,195.45,195.39,7.26473235]
[1735189274349,7.11977542,195.45,195.44,7.26473235]
[1735189274744,7.12468188,195.46,195.44,7.26473235]
[1735189275149,105.46490787,195.49,195.44,7.26473235]
[1735189275646,7.26473235,195.47,195.32,3.14]
[1735189275854,7.26473235,195.45,195.39,7.26473235]
[1735189276854,2.5608,195.42,195.39,7.26473235]
[1735189277050,7.26473235,195.45,195.39,7.26473235]
[1735189277245,3.1293,195.46,195.39,7.26473235]
[1735189277550,10.39403235,195.46,195.39,7.26473235]
[1735189278151,3.1293,195.46,195.39,7.26473235]
[1735189278452,2.5609,195.41,195.39,7.26473235]
[1735189284252,10.40473235,195.45,195.31,1.5512]
[1735189284454,7.26473235,195.43,195.35,7.26473235]
[1735189285560,2.5611,195.39,195.35,7.26473235]
[1735189286656,2.5611,195.39,195.34,2.5617]
[1735189286856,2.5611,195.39,195.35,7.26473235]
[1735189287661,2.561,195.4,195.35,9.82633235]